Cogmind - Beta 17 @@@ ROGUE MODE // 2026.06.27 @ 23:14:14 Player: mmmmcheese Result: Destroyed by Executioner with Helical Railgun Performance ------------- Evolutions (5) 2500 Regions Visited (19) 3800 Robots Destroyed (143) 715 Value Destroyed (6215) 6215 Prototype IDs (44) 880 Alien Tech Used (0) 0 Bonus (3638) 3638 TOTAL SCORE: 17748 Bonus ------- High Alert Combat Kills 290 Follower Combat Kills 820 Registered with UFD 300 Met Optimus in HQ 500 Met Data Miner 300 Met Warlord at Base 500 MAIN.C Attacked Warlord 500 Warlord Defense Kills 428 Cogmind --------- Core Integrity 0/1000 Matter 73/300 Energy 100/100 System Corruption 3% Temperature Cool (0) Movement Core (50) Location -5/Warlord Parts ------- > --- POWER (1) -------- (None) > --- PROPULSION (4) --- (None) > --- UTILITY (9) ------ (None) > --- WEAPON (3) ------- (None) > --- INVENTORY (5) ---- Vortex Chain Reactor Coil Gun Peak State ------------ > --- POWER ------------ (None) > --- PROPULSION ------- Experimental Myomer Leg Experimental Myomer Leg > --- UTILITY ---------- Ghost Barrier Wardrone Bay > --- WEAPON ----------- Gauss Rifle > --- INVENTORY -------- Vortex Chain Reactor [Rating: 137] Favorites ----------- Power Neutrino Core Engine Light Angular Momentum Engine Power Core Neutrino Core Reactor Antimatter Reactor Propulsion Armored Huge Wheel Treads Advanced Treads Leg Armored Leg Wheel Armored Huge Wheel Flight Unit Improved Flight Unit Utility Hacking Suite Device Experimental Sensor Array Storage Huge Storage Unit Processor Improved Signal Interpreter Hackware Hacking Suite Protection Improved Heavy Armor Plating Weapon Enhanced Autogun Energy Gun EM Pulse Gun Ballistic Gun Enhanced Autogun Ballistic Cannon Magnetic Acceleration Cannon Launcher Heavy Rocket Launcher Build | -11 -10 -10 -10 -9 -8 -8 -8 -8 -6 -6 -6 -6 -6 -6 -5 -5 -5 -5 -5 ------- Run | Yrd Mat Min Exi Min Mat Sto Rec Scr Fac Was Fac Low Low Dat Pro Fac Upp Upp War Slots Evolved 10 | . . . . . 4 . . . 4 . . . . . . 2 . . . Power . | . . . . . . . . . . . . . . . . . . . . Propulsion 2 | . . . . . 1 . . . 1 . . . . . . . . . . Utility 7 | . . . . . 3 . . . 3 . . . . . . 1 . . . Weapon 1 | . . . . . . . . . . . . . . . . 1 . . . Parts Attached 136 | 7 1 2 . 2 13 16 5 1 33 . 11 3 6 . . 23 3 3 7 Power 13 | 2 . . . . 1 3 1 . 3 . 1 . . . . 2 . . . Engine 8 | 2 . . . . . 3 1 . 2 . . . . . . . . . . Core 4 | . . . . . 1 . . . 1 . 1 . . . . 1 . . . Reactor 1 | . . . . . . . . . . . . . . . . 1 . . . Propulsion 35 | 3 . . . 1 3 4 1 1 11 . . 1 . . . 7 . . 3 Treads 11 | 2 . . . . . 2 1 1 3 . . . . . . 2 . . . Leg 13 | 1 . . . 1 2 2 . . 4 . . . . . . 1 . . 2 Wheel 9 | . . . . . . . . . 4 . . 1 . . . 4 . . . Hover . | . . . . . . . . . . . . . . . . . . . . Flight 2 | . . . . . 1 . . . . . . . . . . . . . 1 Utility 54 | . 1 1 . . 4 4 3 . 13 . 7 2 2 . . 8 3 2 4 Device 25 | . . . . . 1 2 . . 7 . 3 . 1 . . 5 2 1 3 Storage 3 | . 1 . . . 1 . 1 . . . . . . . . . . . . Processor 8 | . . 1 . . . . 1 . 2 . 2 . 1 . . . . 1 . Hackware 5 | . . . . . 1 1 . . . . 1 . . . . 1 . . 1 Protection 13 | . . . . . 1 1 1 . 4 . 1 2 . . . 2 1 . . Artifact . | . . . . . . . . . . . . . . . . . . . . Weapon 34 | 2 . 1 . 1 5 5 . . 6 . 3 . 4 . . 6 . 1 . Energy Gun 4 | 2 . . . . . . . . 1 . . . . . . 1 . . . Energy Cannon . | . . . . . . . . . . . . . . . . . . . . Ballistic Gun 25 | . . 1 . . 5 4 . . 5 . 3 . 2 . . 5 . . . Ballistic Cannon 2 | . . . . . . 1 . . . . . . 1 . . . . . . Launcher 3 | . . . . 1 . . . . . . . . 1 . . . . 1 . Special Weapon . | . . . . . . . . . . . . . . . . . . . . Impact Weapon . | . . . . . . . . . . . . . . . . . . . . Slashing Weapon . | . . . . . . . . . . . . . . . . . . . . Piercing Weapon . | . . . . . . . . . . . . . . . . . . . . Special Melee Weapon . | . . . . . . . . . . . . . . . . . . . . Unidentified Prototypes 11 | . . . . . 1 3 . . . . . . 1 . . . . . 6 Parts Lost 44 | . . 2 . 5 . 6 . . 9 . . 1 . . . 12 1 3 5 Power 6 | . . . . 1 . 1 . . 1 . . . . . . 2 . . 1 Propulsion 12 | . . . . 2 . 2 . . 2 . . 1 . . . 3 1 . 1 Utility 9 | . . 1 . . . 2 . . 1 . . . . . . 3 . 1 1 Weapon 17 | . . 1 . 2 . 1 . . 5 . . . . . . 4 . 2 2 Highest Loss Streak 6 | . . 2 . 4 . 4 . . 3 . . 1 . . . 6 1 3 5 To Critical Strikes 1 | . . . . . . . . . . . . . . . . 1 . . . Average Backups 16 | 1 3 8 9 8 11 13 14 16 17 16 19 20 21 21 21 20 17 13 14 Power 1 | . 1 1 2 3 3 3 1 . . 2 1 1 1 1 1 1 . . . Propulsion 1 | . . . 1 . . 1 2 3 2 1 1 . . . . . . . 1 Utility 8 | . 1 2 1 1 3 4 5 7 10 11 12 12 13 14 14 13 8 6 4 Weapon 5 | . . 2 2 1 4 4 3 3 4 2 5 7 6 6 6 6 9 7 7 Tool/Special . | . . . . . . . . . . . . . . . . . . . . Unused Backups 40 | . . . 4 1 . 1 6 5 4 . 6 1 . . . 1 . . 11 Power 6 | . . . . . . . 4 . . . 1 . . . . . . . 1 Propulsion 5 | . . . . . . . . 3 1 . . . . . . . . . 1 Utility 10 | . . . 3 . . . . 1 1 . 2 1 . . . 1 . . 1 Weapon 15 | . . . 1 . . . 1 . 2 . 3 . . . . . . . 8 Tool/Special 4 | . . . . 1 . 1 1 1 . . . . . . . . . . . Average Slot Usage (%) 82 | . 80 88 85 80 60 88 95 100 89 62 79 68 62 60 60 75 85 81 82 Engine 4 | . 14 14 14 12 . 4 9 9 5 6 1 . . . . . . . . Core 1 | . . . . . 1 1 . . . . 4 6 6 6 6 4 . . . Treads 11 | . 28 28 28 24 . 5 23 27 10 . . . . . . 4 5 5 4 Leg 3 | . . . . 1 17 17 . . 10 . . . . . . 1 . . 6 Wheel 3 | . . . . . . . . . 2 13 13 7 6 6 6 6 8 5 1 Device 11 | . . . . . 2 14 9 9 11 17 14 12 16 20 20 17 20 17 12 Storage 7 | . 9 14 14 14 9 9 9 9 6 6 6 6 6 6 6 5 5 5 4 Processor 7 | . . 3 . . . . 4 9 12 6 12 6 7 6 6 5 5 10 10 Hackware 8 | . . . . . 7 15 18 18 13 6 6 6 1 . . 4 5 5 8 Protection 2 | . . . . . 4 2 3 . 1 4 5 8 2 . . 3 7 5 4 Energy Gun 2 | . 28 20 14 12 . . . . . . . . . . . 1 . . . Ballistic Gun 12 | . . 7 14 14 16 17 18 18 11 . 11 13 12 6 8 13 17 5 4 Launcher 1 | . . . . . . . . . . . . . . . . . . 10 10 Peak Build Rating 137 | 5 6 8 8 9 28 40 42 50 76 56 76 70 80 80 81 98 86 86 137 Average Rating 59 | 4 5 7 7 8 19 32 39 46 69 53 69 62 72 80 80 87 81 81 103 On Entrance 45 | . 5 6 8 8 7 26 35 42 50 56 52 67 63 80 80 81 81 83 82 Avg Prop Armor Cover (%) 6 | . . . . . 1 6 . . 11 . 6 . . . . 6 7 8 6 Naked Turns 80 | . . . . . . . . . . . . . . . . . . . 80 Heaviest Build 146 | 9 19 19 18 18 34 41 39 96 126 110 141 141 124 122 122 145 146 137 137 Greatest Support 103 | 40 40 40 40 40 42 42 62 64 103 56 56 56 28 28 28 30 20 10 70 Greatest Overweight (x) 14 | . . . . 3 1 1 . 1 4 1 4 5 4 4 4 14 14 13 13 Average Overweight (x) 2 | . . . . . . . . . 1 1 2 3 4 4 4 5 8 12 4 Largest Inventory Capacity 25 | 5 10 10 10 10 15 15 25 25 25 25 25 25 25 25 25 25 25 25 25 Average Capacity 21 | 5 8 10 10 10 13 15 15 24 25 25 25 25 25 25 25 25 25 25 24 Most Carried 25 | 2 5 10 10 10 15 15 15 25 25 21 25 25 25 23 25 25 19 16 25 Average Carried 19 | 1 3 8 9 9 12 14 14 18 24 21 24 22 23 23 23 22 18 13 21 Final Capacity 25 | 5 10 10 10 10 15 15 15 25 25 25 25 25 25 25 25 25 25 25 5 Final Carried 25 | 2 5 10 9 8 14 15 15 25 21 21 22 25 23 23 25 19 16 13 3 Scrap Suit Usage (%) 6 | . . . . . . . . . 44 100 5 1 . . . . . . . Parts Cannibalized 8 | . . . . . . . . . 6 . 1 1 . . . . . . . Class Distribution -------------------- 41% | Mutant 22% | Commander-Mutant 12% | Hacker-Mutant 7% | Scavenger-Tank 6% | Tank 6% | Hacker-Tank Dominant Class ---------------- Mutant | -10/Materials Mutant | -10/Mines Mutant | -10/Exiles Mutant | -9/Mines Mutant | -8/Materials Hacker-Mutant | -8/Storage Commander-Mutant | -8/Recycling Commander-Mutant | -8/Scraptown Hacker-Mutant | -6/Factory Mutant | -6/Waste Mutant | -6/Factory Mutant | -6/Lower Caves Mutant | -6/Lower Caves Mutant | -6/Data Miner Mutant | -5/Proximity Caves Scavenger-Tank | -5/Factory Scavenger-Tank | -5/Upper Caves Tank | -5/Upper Caves Hacker-Tank | -5/Warlord Resources | -11 -10 -10 -10 -9 -8 -8 -8 -8 -6 -6 -6 -6 -6 -6 -5 -5 -5 -5 -5 ----------- Run | Yrd Mat Min Exi Min Mat Sto Rec Scr Fac Was Fac Low Low Dat Pro Fac Upp Upp War Matter Collected 7047 | 270 10 19 . 6 264 326 412 155 1838 . 747 497 177 . 223 1842 106 90 65 Remotely . | . . . . . . . . . . . . . . . . . . . . Salvage Created 6294 | 123 136 145 . 49 264 307 49 . 2083 . 766 114 7 . 68 1843 119 111 110 Parts 355 | 2 5 9 . . 15 18 1 . 122 . 42 7 2 . 8 110 6 2 6 Haulers Intercepted 1 | . . . . . . . . . . . 1 . . . . . . . . Recyclers Shooed 4 | 1 . . . . . 1 . . . . . . . . . 2 . . . Parts Field Recycled . | . . . . . . . . . . . . . . . . . . . . Retrieved Matter . | . . . . . . . . . . . . . . . . . . . . Parts Self-Destructed 26 | . . . . . . . . . . . . 7 1 . 10 . 6 2 . Prevented . | . . . . . . . . . . . . . . . . . . . . Parts Restored . | . . . . . . . . . . . . . . . . . . . . Kills | -11 -10 -10 -10 -9 -8 -8 -8 -8 -6 -6 -6 -6 -6 -6 -5 -5 -5 -5 -5 ------- Run | Yrd Mat Min Exi Min Mat Sto Rec Scr Fac Was Fac Low Low Dat Pro Fac Upp Upp War Combat Hostiles Destroyed 124 | . 2 5 . 3 8 11 1 . 30 . 12 4 3 . 3 29 2 5 6 Guns 105 | . . 4 . 3 8 11 1 . 29 . 12 4 . . 3 28 2 . . Cannons 1 | . . . . . . . . . 1 . . . . . . . . . . AOE 17 | . 1 1 . . . . . . . . . . 3 . . 1 . 5 6 Classes Destroyed 18 | 2 2 1 . 1 2 . . . 7 . 1 . . . . 1 . . 1 Worker 2 | . . . . . . . . . . . . . . . . 2 . . . Builder 8 | . . . . . . . . . 4 . . . . . . 4 . . . Tunneler 1 | 1 . . . . . . . . . . . . . . . . . . . Hauler 1 | . . . . . . . . . . . 1 . . . . . . . . Recycler 3 | 1 . . . . . . . . 2 . . . . . . . . . . Operator 1 | . . . . . . . . . 1 . . . . . . . . . . Watcher 6 | . 2 . . . . . . . 1 . 2 . . . . 1 . . . Swarmer 25 | . . 3 . . 4 5 . . . . . 3 3 . 3 . . . 4 Saboteur 1 | . . . . . . . . . . . . . . . . . . . 1 Grunt 50 | . 2 2 . . 2 3 . . 16 . 4 . . . . 14 2 5 . Duelist 1 | . . . . . 1 . . . . . . . . . . . . . . Sentry 11 | . . . . . 1 3 1 . 3 . 2 . . . . 1 . . . Specialist 4 | . . . . . . . . . 2 . 2 . . . . . . . . Hunter 9 | . . . . . . . . . 2 . 1 . . . . 6 . . . Programmer 17 | . . . . . . . . . 5 . 3 1 . . . 8 . . . Heavy 1 | . . . . . . . . . 1 . . . . . . . . . . Behemoth 2 | . . . . . . . . . 1 . . . . . . . . . 1 Assembled 3 | . . . . 3 . . . . . . . . . . . . . . . Best Kill Streak 6 | 2 2 5 . 1 5 3 1 . 6 . 3 3 3 . 3 6 2 5 6 Combat Bots Only 6 | . 2 5 . 1 5 3 1 . 5 . 3 3 3 . 3 5 2 5 6 Max Kills in Single Turn 4 | 1 1 2 . 1 1 1 1 . 4 . 1 1 3 . 1 2 1 2 3 Gunslinging 1 | . . . . . . . . . . . . . . . . 1 . . . Exploded 3 | . 1 1 . . . . . . . . . . 3 . . 1 . 2 3 Melee . | . . . . . . . . . . . . . . . . . . . . Uniques/NPCs Destroyed . | . . . . . . . . . . . . . . . . . . . . Combat | -11 -10 -10 -10 -9 -8 -8 -8 -8 -6 -6 -6 -6 -6 -6 -5 -5 -5 -5 -5 -------- Run | Yrd Mat Min Exi Min Mat Sto Rec Scr Fac Was Fac Low Low Dat Pro Fac Upp Upp War Hostile Shots Fired 1380 | . 7 17 . 17 35 90 . . 364 3 173 29 9 . 11 429 32 58 106 Missed 416 | . 2 3 . 5 13 34 . . 117 . 49 7 4 . 4 113 8 12 45 Hits 964 | . 5 14 . 12 22 56 . . 247 3 124 22 5 . 7 316 24 46 61 Melee 18 | . . . . 12 3 . . . . 3 . . . . . . . . . Projectile 946 | . 5 14 . . 19 56 . . 247 . 124 22 5 . 7 316 24 46 61 AOE 25 | . . . . . . . . . . . . . . . . 1 . . 24 Critical Strikes 39 | . . . . . . . . . 15 . 4 . . . 1 11 2 3 3 Part Disruptions 2 | . . . . . . . . . 1 . 1 . . . . . . . . Damage Taken 16060 | 34 124 202 . 370 300 672 . . 4150 106 1341 275 153 . 105 4710 263 734 2521 Core 2000 | 34 52 46 . . 81 48 . . 504 45 119 36 26 . . 356 . 63 590 Absorbed by Shields 922 | . . . . . . . . . 30 . 285 . . . . 325 95 187 . Ignored by Resistances 625 | . . . . . 22 46 . . 76 . 194 80 . . . 207 . . . Regen/Repaired (Parts) 705 | . . . . . . . . . 238 . 10 3 . . . 160 . . 294 Core Remaining (%) 55 | 86 . . . 47 . . . 76 . . . . . . 14 . . . . Volleys Fired 521 | 6 9 8 . 19 25 45 3 . 164 . 66 12 8 . 5 132 4 8 7 Largest 3 | 2 2 2 . 2 2 2 2 . 2 . 2 2 1 . 2 3 3 3 3 Hottest 150 | 80 80 80 . 60 50 65 50 . 150 . 60 55 44 . 60 138 89 100 110 Shots Fired 1049 | 12 18 16 . 31 47 75 6 . 292 . 122 31 11 . 12 334 12 13 17 Gun 987 | 12 18 16 . 28 47 67 6 . 268 . 122 31 3 . 12 334 12 5 6 Cannon 36 | . . . . . . 8 . . 24 . . . 4 . . . . . . Launcher 26 | . . . . 3 . . . . . . . . 4 . . . . 8 11 Special . | . . . . . . . . . . . . . . . . . . . . Kinetic 883 | . . 4 . 16 47 75 6 . 245 . 122 31 7 . 12 295 12 5 6 Thermal 86 | . . . . . . . . . 47 . . . . . . 39 . . . Explosive 21 | . . . . 3 . . . . . . . . 4 . . . . 8 6 Electromagnetic 59 | 12 18 12 . 12 . . . . . . . . . . . . . . 5 Robot Hit Streak 19 | 5 4 16 . 3 6 6 11 . 17 . 19 3 2 . 2 15 5 5 5 Robot Miss Streak 7 | 1 3 1 . 4 2 7 . . 3 . 3 4 1 . 2 7 1 2 2 Penetration Max 1 | . . . . . . . . . 1 . . . . . . 1 . . . Secondary Targets 13 | . . 2 . . . . . . 3 . . 1 . . . 7 . . . Max Gunslinging Chain 1 | . . 1 . . . . . . 1 . . 1 . . . 1 . . . Shots Hit Robots 681 | 7 10 14 . 14 33 40 6 . 208 . 96 10 3 . 4 208 9 7 12 Core Hits 323 | 3 5 8 . 7 15 22 2 . 84 . 35 5 4 . 3 93 5 15 17 Critical Kills 8 | . . . . . . . . . 6 . . . . . . 2 . . . Critical Parts Destroyed 14 | . . . . . . . . . 9 . 1 . . . . 4 . . . Critical Strikes 25 | . . . . . . . . . 15 . 1 . . . . 9 . . . Burn 3 | . . . . . . . . . . . . . . . . 3 . . . Destroy 22 | . . . . . . . . . 15 . 1 . . . . 6 . . . Melee Attacks . | . . . . . . . . . . . . . . . . . . . . Impact . | . . . . . . . . . . . . . . . . . . . . Slashing . | . . . . . . . . . . . . . . . . . . . . Piercing . | . . . . . . . . . . . . . . . . . . . . Sneak Attacks . | . . . . . . . . . . . . . . . . . . . . Combat Hostiles . | . . . . . . . . . . . . . . . . . . . . Follow-up Attacks . | . . . . . . . . . . . . . . . . . . . . Damage Inflicted 17697 | 126 258 254 . 141 519 743 105 . 5452 . 2057 218 452 . 92 5020 220 1019 1021 Guns 14356 | 90 171 155 . 139 519 743 105 . 4864 . 2034 218 22 . 92 4850 220 57 77 Cannons 56 | . . . . . . . . . 56 . . . . . . . . . . Explosions 3250 | 36 87 99 . . . . . . 522 . . . 430 . . 170 . 962 944 Melee . | . . . . . . . . . . . . . . . . . . . . Ramming 35 | . . . . 2 . . . . 10 . 23 . . . . . . . . Kinetic 12170 | . . 30 . 50 519 743 105 . 3693 . 2034 218 22 . 92 4310 220 57 77 Thermal 2669 | 36 87 99 . . . . . . 1749 . . . . . . 540 . . 158 Explosive 1827 | . . . . . . . . . . . . . 430 . . . . 962 435 Electromagnetic 996 | 90 171 125 . 89 . . . . . . . . . . . 170 . . 351 Impact . | . . . . . . . . . . . . . . . . . . . . Slashing . | . . . . . . . . . . . . . . . . . . . . Piercing . | . . . . . . . . . . . . . . . . . . . . Highest Corruption 15 | . . . . . . . . . 2 10 14 15 15 15 15 7 5 . 3 Average Corruption 8 | . . . . . . . . . 1 8 11 14 15 15 15 4 4 . 2 Corruption Purged 9 | . . . . . . . . . . . . . . . . 4 5 . . Corruption Blocked . | . . . . . . . . . . . . . . . . . . . . Effects 283 | . . . . . . . . . 31 4 62 65 51 2 24 35 7 . 2 Message Errors 61 | . . . . . . . . . 4 1 15 16 9 . 3 10 2 . 1 Matter Fused 72 | . . . . . . . . . 7 . 16 16 17 . 8 6 1 . 1 Heat Flow Errors 33 | . . . . . . . . . 3 . 6 9 7 1 3 4 . . . Energy Discharges 35 | . . . . . . . . . 7 . 6 6 7 . 3 5 1 . . Parts Rejected 3 | . . . . . . . . . . 2 1 . . . . . . . . Parts Fused 1 | . . . . . . . . . . . . 1 . . . . . . . Data Loss (minor) 40 | . . . . . . . . . 5 . 10 7 5 . 3 8 2 . . Data Loss (major) 3 | . . . . . . . . . 1 . 1 . . . 1 . . . . Misfires 17 | . . . . . . . . . 3 . . 7 4 . 3 . . . . Alerts 8 | . . . . . . . . . . . 2 3 1 1 . . 1 . . Misdirections 2 | . . . . . . . . . . 1 1 . . . . . . . . Weapon Failures 8 | . . . . . . . . . 1 . 4 . 1 . . 2 . . . Overload Shots . | . . . . . . . . . . . . . . . . . . . . Overflow Damage 354 | . . 17 . . . . . . 212 . . . 87 . . . . 29 9 Projectiles . | . . . . . . . . . . . . . . . . . . . . Explosions 354 | . . 17 . . . . . . 212 . . . 87 . . . . 29 9 Melee . | . . . . . . . . . . . . . . . . . . . . Knockbacks . | . . . . . . . . . . . . . . . . . . . . Impact . | . . . . . . . . . . . . . . . . . . . . Kinetic . | . . . . . . . . . . . . . . . . . . . . Secondary . | . . . . . . . . . . . . . . . . . . . . Self-Inflicted Damage 367 | 34 52 36 . . . . . . 39 . 11 . 77 . . 42 . 56 20 Shots 15 | 1 1 2 . . . . . . 1 . . . 2 . . 2 . 4 2 Rammed 2 | . . . . . . . . . . . 2 . . . . . . . . Targets Rammed 4 | . . . . 1 . . . . 1 . 2 . . . . . . . . Kicked 2 | . . . . 1 . . . . 1 . . . . . . . . . . Crushed . | . . . . . . . . . . . . . . . . . . . . Highest Temperature 327 | 84 129 179 . 60 . 20 . . 327 . 173 225 231 266 235 317 . 48 268 Average Temperature 66 | 34 48 98 . 25 . 9 . . 68 . 27 85 85 135 56 101 . 21 116 Received Heat Transfer 3404 | . 42 78 . . 99 279 . . 1227 . 348 . . . . 586 73 328 344 Effects 10 | . . . . . . . . . 3 . . . . . . 7 . . . Interference 10 | . . . . . . . . . 3 . . . . . . 7 . . . Siege Activations . | . . . . . . . . . . . . . . . . . . . . Martial Activations . | . . . . . . . . . . . . . . . . . . . . Shielding Activations . | . . . . . . . . . . . . . . . . . . . . Robots Disrupted . | . . . . . . . . . . . . . . . . . . . . Combat Hostiles . | . . . . . . . . . . . . . . . . . . . . Robots Corrupted 1 | . 1 . . . . . . . . . . . . . . . . . . Combat Hostiles 1 | . 1 . . . . . . . . . . . . . . . . . . Parts Fried . | . . . . . . . . . . . . . . . . . . . . Impact Corruptions . | . . . . . . . . . . . . . . . . . . . . Robots Melted . | . . . . . . . . . . . . . . . . . . . . Combat Hostiles . | . . . . . . . . . . . . . . . . . . . . Parts Melted 3 | . . . . . . . 2 . 1 . . . . . . . . . . Heat Transferred 3560 | . 50 150 . . . . . . 2150 . . . . . . 1110 . . 100 Parts Sabotaged . | . . . . . . . . . . . . . . . . . . . . Parts Stolen . | . . . . . . . . . . . . . . . . . . . . Parts Stripped . | . . . . . . . . . . . . . . . . . . . . Power Chain Reactions 11 | 1 1 2 . . . . . . . . . . . . . . . . 7 Alert | -11 -10 -10 -10 -9 -8 -8 -8 -8 -6 -6 -6 -6 -6 -6 -5 -5 -5 -5 -5 ------- Run | Yrd Mat Min Exi Min Mat Sto Rec Scr Fac Was Fac Low Low Dat Pro Fac Upp Upp War Maximum Alert Level 2 | . . . . . 1 . . . 2 1 . . . . . 2 . . . Low Security (%) 77 | 100 100 100 . 100 94 100 100 . 77 77 100 . . . . 3 . . . Level 1 12 | . . . . . 5 . . . 13 22 . . . . . 49 . . . Level 2 10 | . . . . . . . . . 8 . . . . . . 47 . . . Level 3 . | . . . . . . . . . . . . . . . . . . . . Level 4 . | . . . . . . . . . . . . . . . . . . . . Level 5 . | . . . . . . . . . . . . . . . . . . . . High Security . | . . . . . . . . . . . . . . . . . . . . Max Security . | . . . . . . . . . . . . . . . . . . . . Peak Influence 661 | 5 92 101 . 31 209 160 60 . 617 208 122 . . . . 661 . . . Initial 602 | . . 35 . . 3 78 25 . . 208 117 . . . . 602 . . . Average 123 | 1 17 13 . 1 43 74 11 . 139 190 27 . . . . 423 . . . Influence Increases 5447 | 10 173 129 . 31 279 395 192 . 1464 . 380 100 70 . 126 1556 40 110 392 Destroy 0b10 Robot/C 2820 | . 40 100 . . 160 240 20 . 820 . 240 80 60 . 100 580 40 100 240 Destroy 0b10 Robot/NC 115 | 10 10 . . . . . . . 40 . 15 . . . 5 35 . . . Destroy Leader 584 | . 14 20 . . 30 50 . . 232 . 76 20 10 . 10 112 . 10 . Allied During Kill 209 | . . 5 . . . 35 12 . 114 . . . . . 11 . . . 32 Successful Hack 189 | . 40 . . . 14 2 10 . 34 . 48 . . . . 41 . . . Select Force Hacks 150 | . . . . . . . 150 . . . . . . . . . . . . Disable Machine 300 | . 15 . . 15 . 30 . . 120 . . . . . . 120 . . . Destroy Structure 120 | . 9 4 . 16 . 8 . . 44 . 1 . . . . 38 . . . Advance Influence 600 | . . . . . . . . . . . . . . . . 600 . . . Lose Combat Pursuer 360 | . 45 . . . 75 30 . . 60 . . . . . . 30 . . 120 Influence Decreases 5210 | 10 81 221 . 22 103 513 259 . 869 427 514 134 70 . 121 921 581 209 155 Entered New Map 923 | . . 57 . . 6 107 42 . . 387 51 14 . . . 3 237 19 . Time Decay 3238 | 10 81 144 . 12 97 346 162 . 593 40 361 110 70 . 101 598 334 160 19 Search Patrol Dispatched 200 | . . . . . . . . . . . . . . . . 200 . . . Lost Part 400 | . . 20 . 10 . 60 . . 90 . . 10 . . . 120 10 30 50 Lost Ally 286 | . . . . . . . 20 . 160 . . . . . 20 . . . 86 Purge Threat 163 | . . . . . . . 35 . 26 . 102 . . . . . . . . Squads Dispatched 37 | . 1 . . . . 2 . . 21 . 7 . . . . 6 . . . Investigation 8 | . 1 . . . . . . . 5 . 1 . . . . 1 . . . Extermination 11 | . . . . . . . . . 6 . 3 . . . . 2 . . . Reinforcement 12 | . . . . . . 2 . . 5 . 3 . . . . 2 . . . Assault 2 | . . . . . . . . . 2 . . . . . . . . . . Garrison 4 | . . . . . . . . . 3 . . . . . . 1 . . . Intercept . | . . . . . . . . . . . . . . . . . . . . Searches Triggered 2 | . . . . . . . . . . . . . . . . 2 . . . Data Miner Redirects 1 | . . . . . . . . . . . . . . . . 1 . . . Construction Impeded 4 | . . . . . . . . . 3 . . . . . . 1 . . . Haulers Reinforced 1 | . . . . . . . . . . . . . . . . 1 . . . Active Scanning Responses . | . . . . . . . . . . . . . . . . . . . . Cargo Convoy Interrupts 1 | . . . . . . . . . . . 1 . . . . . . . . Stealth | -11 -10 -10 -10 -9 -8 -8 -8 -8 -6 -6 -6 -6 -6 -6 -5 -5 -5 -5 -5 --------- Run | Yrd Mat Min Exi Min Mat Sto Rec Scr Fac Was Fac Low Low Dat Pro Fac Upp Upp War Distress Signals 9 | . 1 . . . 2 3 . . . . . . . . . 2 . . 1 Communications Jammed . | . . . . . . . . . . . . . . . . . . . . Distress Signals . | . . . . . . . . . . . . . . . . . . . . Times Spotted 230 | . 5 5 . 9 10 21 1 . 53 6 22 6 8 . 7 36 3 5 33 Peak Tracking Total 15 | . 4 5 . 4 6 6 1 . 4 6 4 3 5 . 3 7 2 5 15 Tactical Retreats 16 | . 1 . . 1 3 1 . . 3 1 . . . . . 2 1 . 3 ECM-based Alert Blocks 1 | . . . . . . . . . . . . . . . . . 1 . . Traps | -11 -10 -10 -10 -9 -8 -8 -8 -8 -6 -6 -6 -6 -6 -6 -5 -5 -5 -5 -5 ------- Run | Yrd Mat Min Exi Min Mat Sto Rec Scr Fac Was Fac Low Low Dat Pro Fac Upp Upp War Traps Triggered 9 | . 1 . . . 2 . . . 5 . 1 . . . . . . . . Indirectly . | . . . . . . . . . . . . . . . . . . . . Trap Hack Attempts . | . . . . . . . . . . . . . . . . . . . . Triggered . | . . . . . . . . . . . . . . . . . . . . Disarmed . | . . . . . . . . . . . . . . . . . . . . Reprogrammed . | . . . . . . . . . . . . . . . . . . . . Reused . | . . . . . . . . . . . . . . . . . . . . Traps Extracted . | . . . . . . . . . . . . . . . . . . . . Installed 1 | . . . . . . 1 . . . . . . . . . . . . . Triggered . | . . . . . . . . . . . . . . . . . . . . Most Traps Carried 1 | . . . . 1 1 1 . 1 1 . . . . . . . . . . Machines | -11 -10 -10 -10 -9 -8 -8 -8 -8 -6 -6 -6 -6 -6 -6 -5 -5 -5 -5 -5 ---------- Run | Yrd Mat Min Exi Min Mat Sto Rec Scr Fac Was Fac Low Low Dat Pro Fac Upp Upp War Machines Disabled 21 | . 1 . . 1 . 2 . . 8 . . . . . . 8 . . 1 Max in Single Turn 7 | . 1 . . 1 . 1 . . 4 . . . . . . 7 . . . Garrison Access 1 | . . . . . . . . . . . . . . . . 1 . . . Machines Repaired . | . . . . . . . . . . . . . . . . . . . . Machines Dismantled . | . . . . . . . . . . . . . . . . . . . . Machines Sabotaged . | . . . . . . . . . . . . . . . . . . . . Overloaded Fab Kills . | . . . . . . . . . . . . . . . . . . . . Hacking | -11 -10 -10 -10 -9 -8 -8 -8 -8 -6 -6 -6 -6 -6 -6 -5 -5 -5 -5 -5 --------- Run | Yrd Mat Min Exi Min Mat Sto Rec Scr Fac Was Fac Low Low Dat Pro Fac Upp Upp War Machines Accessed 68 | . 2 . 3 . 3 4 10 5 12 . 9 1 2 4 . 7 . . 6 Terminals 25 | . 2 . . . 3 3 5 . 4 . 5 . . . . 3 . . . Fabricators 2 | . . . . . . . . . . . 2 . . . . . . . . Repair Stations 2 | . . . . . . . . . 1 . . . . . . 1 . . . Recycling Units 11 | . . . . . . 1 5 . 4 . . . . . . 1 . . . Scanalyzers 4 | . . . . . . . . . 2 . 1 . . . . 1 . . . Garrison Access 3 | . . . . . . . . . 1 . 1 . . . . 1 . . . Total Hacks 169 | . 5 . 3 . 7 6 20 24 25 . 16 1 2 30 . 13 . . 17 Successful 131 | . 3 . 3 . 4 6 15 24 14 . 6 1 2 30 . 6 . . 17 Failed 38 | . 2 . . . 3 . 5 . 11 . 10 . . . . 7 . . . Catastrophic 7 | . 1 . . . . . . . 1 . 3 . . . . 2 . . . Database Lockouts . | . . . . . . . . . . . . . . . . . . . . Manual 46 | . 5 . . . 3 3 9 . 10 . 8 . . . . 7 . . 1 Terminals 57 | . 5 . . . 7 5 15 . 9 . 11 . . . . 5 . . . Fabricators 2 | . . . . . . . . . . . 2 . . . . . . . . Repair Stations 4 | . . . . . . . . . 2 . . . . . . 2 . . . Recycling Units 15 | . . . . . . 1 5 . 7 . . . . . . 2 . . . Scanalyzers 10 | . . . . . . . . . 5 . 2 . . . . 3 . . . Garrison Access 4 | . . . . . . . . . 2 . 1 . . . . 1 . . . Terminal Hacks 93 | . . . 3 . 1 3 7 24 3 . 2 1 2 30 . . . . 17 Record 46 | . . . 3 . . . . 23 . . . . . 11 . . . . 9 Part Schematic 10 | . . . . . . . . . . . . . . 10 . . . . . Robot Schematic 6 | . . . . . . . . . . . . . . 6 . . . . . Robot Analysis 1 | . . . . . . . 1 . . . . . . . . . . . . Prototype ID Bank 10 | . . . . . . . 1 . . . . . . 3 . . . . 6 Open Door 6 | . . . . . . 1 . . . . . 1 2 . . . . . 2 Branch Access Points 4 | . . . . . 1 . 1 . 1 . 1 . . . . . . . . Alert Level 2 | . . . . . . . 1 . 1 . . . . . . . . . . Unreport Threat 3 | . . . . . . . 1 . 1 . 1 . . . . . . . . Locate Traps 1 | . . . . . . 1 . . . . . . . . . . . . . Dispatch Records 1 | . . . . . . . 1 . . . . . . . . . . . . Maintenance Status 1 | . . . . . . . 1 . . . . . . . . . . . . Zone Layout 1 | . . . . . . 1 . . . . . . . . . . . . . Proto ID Catalog 1 | . . . . . . . . 1 . . . . . . . . . . . Fabricator Hacks 2 | . . . . . . . . . . . 2 . . . . . . . . Network Status 1 | . . . . . . . . . . . 1 . . . . . . . . Build 1 | . . . . . . . . . . . 1 . . . . . . . . Repair Station Hacks 4 | . . . . . . . . . 2 . . . . . . 2 . . . Scan Component 2 | . . . . . . . . . 1 . . . . . . 1 . . . Repair 2 | . . . . . . . . . 1 . . . . . . 1 . . . Recycling Unit Hacks 1 | . . . . . . 1 . . . . . . . . . . . . . Retrieve Components 1 | . . . . . . 1 . . . . . . . . . . . . . Scanalyzer 5 | . . . . . . . . . 4 . 1 . . . . . . . . Retrieve Study 5 | . . . . . . . . . 4 . 1 . . . . . . . . Garrison Access Hacks 1 | . . . . . . . . . . . . . . . . 1 . . . Seal Access 1 | . . . . . . . . . . . . . . . . 1 . . . Unauthorized Hacks 25 | . 3 . . . 3 2 8 . 5 . 1 . . . . 3 . . . Terminals 15 | . 3 . . . 3 2 3 . 1 . 1 . . . . 2 . . . Botnet 13 | . 2 . . . 2 2 3 . 1 . 1 . . . . 2 . . . Operators 2 | . 1 . . . 1 . . . . . . . . . . . . . . Fabricators . | . . . . . . . . . . . . . . . . . . . . Repair Stations . | . . . . . . . . . . . . . . . . . . . . Recycling Units 10 | . . . . . . . 5 . 4 . . . . . . 1 . . . Tunnel 5 | . . . . . . . 5 . . . . . . . . . . . . Fedlink 5 | . . . . . . . . . 4 . . . . . . 1 . . . Scanalyzers . | . . . . . . . . . . . . . . . . . . . . Garrison Access . | . . . . . . . . . . . . . . . . . . . . Data Cores Recovered . | . . . . . . . . . . . . . . . . . . . . Used . | . . . . . . . . . . . . . . . . . . . . Hacking Detections 33 | . 2 . . . 2 1 4 . 9 . 9 . . . . 6 . . . Full Trace Events . | . . . . . . . . . . . . . . . . . . . . Feedback Events . | . . . . . . . . . . . . . . . . . . . . Feedback Blocked . | . . . . . . . . . . . . . . . . . . . . Robot Schematics Acquired 6 | . . . . . . . . . . . . . . 6 . . . . . Robots Built . | . . . . . . . . . . . . . . . . . . . . Authchips . | . . . . . . . . . . . . . . . . . . . . Time . | . . . . . . . . . . . . . . . . . . . . Total Robot Build Rating . | . . . . . . . . . . . . . . . . . . . . Part Schematics Acquired 10 | . . . . . . . . . . . . . . 10 . . . . . Parts Built 2 | . . . . . . . . . . . 2 . . . . . . . . Authchips . | . . . . . . . . . . . . . . . . . . . . Time 35 | . . . . . . . . . . . 35 . . . . . . . . Total Part Build Rating 12 | . . . . . . . . . . . 12 . . . . . . . . Part Studies Acquired 5 | . . . . . . . . . 4 . 1 . . . . . . . . Parts Repaired 2 | . . . . . . . . . 1 . . . . . . 1 . . . Time 47 | . . . . . . . . . 19 . . . . . . 28 . . . Parts Recycled . | . . . . . . . . . . . . . . . . . . . . Recycled Matter . | . . . . . . . . . . . . . . . . . . . . Retrieved Matter . | . . . . . . . . . . . . . . . . . . . . Retrieved Components 10 | . . . . . . 10 . . . . . . . . . . . . . Parts Scanalyzed . | . . . . . . . . . . . . . . . . . . . . Part Schematics Acquired . | . . . . . . . . . . . . . . . . . . . . Parts Damaged . | . . . . . . . . . . . . . . . . . . . . Bothacking | -11 -10 -10 -10 -9 -8 -8 -8 -8 -6 -6 -6 -6 -6 -6 -5 -5 -5 -5 -5 ------------ Run | Yrd Mat Min Exi Min Mat Sto Rec Scr Fac Was Fac Low Low Dat Pro Fac Upp Upp War Used RIF Installer . | . . . . . . . . . . . . . . . . . . . . Robots Hacked . | . . . . . . . . . . . . . . . . . . . . Non-combat . | . . . . . . . . . . . . . . . . . . . . Combat . | . . . . . . . . . . . . . . . . . . . . Robot Hacks Applied . | . . . . . . . . . . . . . . . . . . . . Relay Couplers Released 3 | . . . . . . . . . . . . . . . . 3 . . . Machine Destruction 3 | . . . . . . . . . . . . . . . . 3 . . . Fabnet Peak Effective % . | . . . . . . . . . . . . . . . . . . . . Robots Rewired 5 | . . . . . . . . . . . . . . . . . . . 5 Allies Hacked . | . . . . . . . . . . . . . . . . . . . . Hacks Repelled . | . . . . . . . . . . . . . . . . . . . . Allies | -11 -10 -10 -10 -9 -8 -8 -8 -8 -6 -6 -6 -6 -6 -6 -5 -5 -5 -5 -5 -------- Run | Yrd Mat Min Exi Min Mat Sto Rec Scr Fac Was Fac Low Low Dat Pro Fac Upp Upp War Total Allies 18 | . . 2 . . . 10 . . . . . . . . 1 . . . 5 Largest Group 10 | . . 2 1 . . 10 10 9 9 . . . . . 1 . . . 5 Highest-Rated Group 209 | . . 42 11 . . 173 173 144 144 . . . . . 96 . . . 209 Highest-Rated Ally 96 | . . 31 11 . . 29 29 16 16 . . . . . 96 . . . 43 Initial UFD Resources 55 | . . . . . . . . . 24 42 42 42 42 42 45 45 55 55 55 Total Orders 4 | . . . . . . 4 . . . . . . . . . . . . . EXPLORE 4 | . . . . . . 4 . . . . . . . . . . . . . Ally Attacks 145 | . . . . . . 11 10 . 70 . . . . . 16 . . . 38 Total Damage 3202 | . . . . . . 132 88 . 934 . . . . . 189 . . . 1859 Kills 21 | . . . . . . 1 . . 11 . . . . . 3 . . . 6 Allies Corrupted . | . . . . . . . . . . . . . . . . . . . . Allies Melted 1 | . . . . . . . . . 1 . . . . . . . . . . Intel | -11 -10 -10 -10 -9 -8 -8 -8 -8 -6 -6 -6 -6 -6 -6 -5 -5 -5 -5 -5 ------- Run | Yrd Mat Min Exi Min Mat Sto Rec Scr Fac Was Fac Low Low Dat Pro Fac Upp Upp War Active Infowar (turns) 14172 | . . . . . . 553 940 3212 1712 . 1009 1404 1077 122 487 443 452 706 2055 Sensors 9256 | . . . . . . 553 940 3212 1562 . 1009 1404 451 122 3 . . . . IFF 3105 | . . . . . . . . . . . . . . . . 143 201 706 2055 Terrain 3264 | . . . . . . . . . 150 . 54 . 626 . 484 300 220 706 724 Traps 2 | . . . . . . . . . . . . . . . . . . 2 . ECM 295 | . . . . . . . . . . . . . . . . . 295 . . Robot Analysis Total 1 | . . . . . . . 1 . . . . . . . . . . . . Derelict Logs Recovered 8 | . . 2 . . . . . . . . . 1 1 . 1 . 1 2 . Drone Launches 16 | . . . . . . 15 . . . . . . . . . . . . 1 Drone Recoveries 3 | . . . . . . 3 . . . . . . . . . . . . . Exploration | -11 -10 -10 -10 -9 -8 -8 -8 -8 -6 -6 -6 -6 -6 -6 -5 -5 -5 -5 -5 ------------- Run | Yrd Mat Min Exi Min Mat Sto Rec Scr Fac Was Fac Low Low Dat Pro Fac Upp Upp War Turns Passed 21911 | 88 273 1158 498 897 586 955 940 3212 2848 87 1579 1586 1087 122 487 1904 745 706 2153 Spaces Moved 10423 | 40 146 669 307 347 350 330 558 1378 1201 72 767 1018 590 82 274 781 334 247 932 Core 155 | 4 . . . 8 . . . . . . . . . . . . . . 143 Treads 4454 | 35 146 669 307 272 . 41 558 1378 518 . . . . . . 5 . . 525 Legs 1029 | 1 . . . 67 350 289 . . 315 . . . . . . . . . 7 Wheels 4785 | . . . . . . . . . 368 72 767 1018 590 82 274 776 334 247 257 Hover . | . . . . . . . . . . . . . . . . . . . . Flight . | . . . . . . . . . . . . . . . . . . . . Fastest Speed 50 | 50 160 160 160 120 120 123 152 157 115 115 105 120 150 150 150 140 170 260 50 Average Speed 174 | 148 160 160 160 153 125 157 155 230 164 115 126 147 150 150 150 176 210 274 220 Slowest Speed 410 | 160 160 160 160 200 200 195 158 233 260 115 150 165 150 150 150 410 290 275 275 Overloaded Moves . | . . . . . . . . . . . . . . . . . . . . Propulsion Burnouts . | . . . . . . . . . . . . . . . . . . . . Robots Hopped . | . . . . . . . . . . . . . . . . . . . . Potential Cave-ins 3 | . . . . 3 . . . . . . . . . . . . . . . Cave-ins Triggered . | . . . . . . . . . . . . . . . . . . . . Exploration Rate (%) 57 | 3 26 97 67 71 20 89 90 83 37 62 20 95 78 69 50 12 46 45 80 Regions Visited 19 Branch Regions 13 Pre-discovered Areas 9 | . . 1 . . . . 5 . 1 . . . . 1 . . . 1 . Known Exits Taken 5 | . . . . . 1 . 1 1 . . 1 . . . 1 . . . . Unknown Exits Taken 12 | 1 1 1 1 1 . 1 . . . . . 1 1 1 . 1 1 1 . Scrap Searched 16 | . . 1 . 1 . . . 3 . . . 6 3 . . . . 2 . Spaces Dug 40 | . . . . 25 . . . . 12 . . . 3 . . . . . . Terrain Destroyed 283 | 2 8 4 . 35 . 2 . . 46 . . . 61 . . 16 . 98 11 Melee . | . . . . . . . . . . . . . . . . . . . . Projectile 55 | . . . . . . 2 . . 33 . . . 3 . . 14 . 2 1 AOE 226 | 2 8 4 . 35 . . . . 13 . . . 58 . . . . 96 10 Terrain Rammed . | . . . . . . . . . . . . . . . . . . . . Walls Destroyed . | . . . . . . . . . . . . . . . . . . . . Machines Disabled . | . . . . . . . . . . . . . . . . . . . . Actions | -11 -10 -10 -10 -9 -8 -8 -8 -8 -6 -6 -6 -6 -6 -6 -5 -5 -5 -5 -5 --------- Run | Yrd Mat Min Exi Min Mat Sto Rec Scr Fac Was Fac Low Low Dat Pro Fac Upp Upp War Total 13324 | 54 168 741 316 685 444 692 626 1419 1845 74 1267 1085 785 81 341 1046 367 262 1026 Wait 1878 | . 9 57 1 312 43 273 44 15 364 . 376 40 167 . 59 83 22 2 11 Move 10406 | 39 145 668 306 346 349 329 557 1377 1201 71 767 1017 589 81 273 780 333 246 932 Hop . | . . . . . . . . . . . . . . . . . . . . Pick Up 132 | 1 4 6 4 3 8 8 8 13 23 . 18 6 4 . 2 14 . . 10 Fast Attach 54 | 6 . 1 . . 11 5 2 2 10 2 2 . . . . 9 . . 4 Attach 56 | . 1 1 . 2 1 4 . . 16 . 5 2 4 . . 14 2 3 1 Detach 7 | . . . . . 1 . . . . . 1 2 1 . . . . . 2 Swap 103 | 1 . . . . 3 14 4 1 34 1 17 4 6 . 2 6 4 3 3 Drop 118 | 1 . . 5 2 3 8 8 11 29 . 14 2 6 . . 8 2 . 19 Fire 521 | 6 9 8 . 19 25 45 3 . 164 . 66 12 8 . 5 132 4 8 7 Melee . | . . . . . . . . . . . . . . . . . . . . Ram 1 | . . . . . . . . . . . 1 . . . . . . . . Kick 2 | . . . . 1 . . . . 1 . . . . . . . . . . Crush . | . . . . . . . . . . . . . . . . . . . . Escape Stasis 3 | . . . . . . . . . 3 . . . . . . . . . . Rewire 37 | . . . . . . . . . . . . . . . . . . . 37 Trap 1 | . . . . . . 1 . . . . . . . . . . . . . Miscellaneous 5 | . . . . . . 5 . . . . . . . . . . . . . Route ------- -11/Scrapyard -10/Materials -10/Mines (discovered 3 exits: [*Mat x2] / *Exi) -10/Exiles -9/Mines -8/Materials -8/Storage -8/Recycling (discovered 2 exits: *Fac / *Scr) -8/Scraptown (discovered 2 exits: *Fac x2) -6/Factory (discovered 4 exits: *Fac x2 / Low x2) -6/Waste -6/Factory (discovered 2 exits: *Low x2) -6/Lower Caves -6/Lower Caves (discovered 2 exits: *Fac / *Dat) -6/Data Miner -5/Proximity Caves -5/Factory -5/Upper Caves -5/Upper Caves -5/Warlord (discovered 1 exit: [*Pro]) History --------- Turn | Location | Event 47 | -11/Scrapyard | Discovered new exit (range 15) 89 | -11/Scrapyard | Entered Materials 306 | -10/Materials | Build established: Mutant 326 | -10/Materials | Discovered new exit (range 16) 362 | -10/Materials | Entered Mines 388 | -10/Mines | Learned Materials interactive machine intel 442 | -10/Mines | Deemed a non-threat by the Exiles lab entrance 442 | -10/Mines | Discovered new exit (range 5) 531 | -10/Mines | Received a Rocket Launcher from a helpful Derelict 890 | -10/Mines | Discovered new exit (range 3) 907 | -10/Mines | Core integrity fell below 50% 1038 | -10/Mines | Learned location of Zion (-7) 1055 | -10/Mines | A weapon hastily lodged in a ceiling crevice suddenly fell to the ground 1322 | -10/Mines | Discovered new exit (range 8) 1520 | -10/Mines | Entered Exiles 1520 | -10/Exiles | Found Exiles lab abandoned 1520 | -10/Exiles | Accompanied by 1 ally 1963 | -10/Exiles | Discovered new exit (range 10) 2018 | -10/Exiles | Entered Mines 2035 | -9/Mines | Met a Derelict bent on vengeance 2110 | -9/Mines | Found a hidden stash of uninstalled traps 2149 | -9/Mines | Discovered new exit (range 6) 2278 | -9/Mines | Assembled infested the area 2283 | -9/Mines | Assisted by a Guerilla fighting off Assembled 2397 | -9/Mines | Found a damaged Exp. Sensor Array with a note attached 2402 | -9/Mines | Found Prototype Device 2833 | -9/Mines | Lost 4 parts (1p2n1w) 2915 | -9/Mines | Entered Materials 2915 | -8/Materials | Evolved 4 slots: Propulsion x1, Utility x3 2916 | -8/Materials | Loaded intel: 19 interactive machine locations 3188 | -8/Materials | Identified exit to Storage 3501 | -8/Materials | Entered Storage 3713 | -8/Storage | Lost 4 parts (1p1n1u1w) 3759 | -8/Storage | Identified Exp. Sensor Array 4107 | -8/Storage | Build established: Hacker-Mutant 4152 | -8/Storage | Assisted by bots powering up and referring to "LRC-V3" 4153 | -8/Storage | Discovered new exit (range 9) 4403 | -8/Storage | Used back door to open Recycling access 4405 | -8/Storage | Lost 3 allies 4452 | -8/Storage | Build established: Commander-Mutant 4456 | -8/Storage | Entered Recycling 4456 | -8/Recycling | Accompanied by 10 allies 4457 | -8/Recycling | Met a Zionite searching for Scraptown 4457 | -8/Recycling | Joined Warlord attack on 0b10 via Recycling 4757 | -8/Recycling | Discovered new exit (range 16) 5339 | -8/Recycling | Scanned before Scraplab entrance 5361 | -8/Recycling | Entered Scraplab 5373 | -8/Recycling | Discovered new exit (range 3) 5375 | -8/Recycling | Identified exit to Scraptown 5396 | -8/Recycling | Entered Scraptown 5396 | -8/Scraptown | Accompanied by 9 allies 5642 | -8/Scraptown | Visited SPCMW 5696 | -8/Scraptown | Visited Spacefarers 6118 | -8/Scraptown | Discovered new exit (range 13) 6232 | -8/Scraptown | Visited Fellowship of the Rings 6272 | -8/Scraptown | Visited Cave Peace 6295 | -8/Scraptown | Visited Shadow of the Wyrm 6344 | -8/Scraptown | Visited Comm Corps 6565 | -8/Scraptown | Visited UFD Registry 6565 | -8/Scraptown | Registered with UFD as "Metabomber" 6619 | -8/Scraptown | Visited Junk Repository 6693 | -8/Scraptown | Visited Junk Repository 6726 | -8/Scraptown | Visited Research Penetration Think Tank 6912 | -8/Scraptown | Visited Infowarlord's Domain 6931 | -8/Scraptown | Found Exp. Terrain Scanner 6979 | -8/Scraptown | Visited Scrap Suit Storage 7062 | -8/Scraptown | Visited Observation Area 7209 | -8/Scraptown | Visited Science Guys 7303 | -8/Scraptown | Visited Curators Association 7413 | -8/Scraptown | Visited Modified Component R&D 7487 | -8/Scraptown | Found Scrap Suit 7491 | -8/Scraptown | Found Scrap Suit 7503 | -8/Scraptown | Found Scrap Suit 7507 | -8/Scraptown | Found Scrap Suit 7512 | -8/Scraptown | Found Scrap Suit 7520 | -8/Scraptown | Found Scrap Suit 8272 | -8/Scraptown | Discovered new exit (range 3) 8450 | -8/Scraptown | Met Optimus 8450 | -8/Scraptown | Accepted into 0bPrime 8590 | -8/Scraptown | Identified exit to Factory 8608 | -8/Scraptown | Entered Factory 8608 | -6/Factory | Accompanied by 9 allies 8608 | -6/Factory | Evolved 4 slots: Propulsion x1, Utility x3 8709 | -6/Factory | Loaded intel: 8 recycling unit locations 8860 | -6/Factory | Learned location of Protoforge (-3) 8937 | -6/Factory | Lost 3 allies 8956 | -6/Factory | Repaired Arm. Treads 9006 | -6/Factory | Garrison activated, responded to threat 9063 | -6/Factory | Lost 5 allies 9115 | -6/Factory | Discovered new exit (range 4) 9120 | -6/Factory | Identified exit to Factory 9330 | -6/Factory | Build established: Hacker-Mutant 11042 | -6/Factory | Spotted B-75 Beast 11054 | -6/Factory | Identified exit to Lower Caves 11142 | -6/Factory | Destroyed B-75 Beast 11170 | -6/Factory | Lost 3 parts (2n1w) 11290 | -6/Factory | Core integrity fell below 50% 11317 | -6/Factory | Discovered exit to Factory (range 14) 11408 | -6/Factory | First assault squad dispatched 11456 | -6/Factory | Sucked down chute 11456 | -6/Factory | Entered Waste 11471 | -6/Waste | EMP discharged 11471 | -6/Waste | System corruption reached 10% 11479 | -6/Waste | Spotted C-40 Crusher 11479 | -6/Waste | Spotted C-40 Crusher 11482 | -6/Waste | Spotted C-40 Crusher 11488 | -6/Waste | Crushed by Compactor (0 parts destroyed, 1 dropped) 11501 | -6/Waste | Spotted C-40 Crusher 11504 | -6/Waste | Spotted C-40 Crusher 11504 | -6/Waste | Spotted C-40 Crusher 11523 | -6/Waste | Discovered new exit (range 16) 11543 | -6/Waste | Entered Factory 11732 | -6/Factory | Build established: Mutant 12032 | -6/Factory | Fabricated Neutrino Core (x2) 12389 | -6/Factory | Cargo convoy interrupted 13122 | -6/Factory | Entered Lower Caves 13290 | -6/Lower Caves | Core integrity fell below 20% 13753 | -6/Lower Caves | Entered a destroyed Warlord outpost 13890 | -6/Lower Caves | Learned Factory stockpile data 14690 | -6/Lower Caves | Discovered new exit (range 11) 14708 | -6/Lower Caves | Entered another Lower Caves area 15179 | -6/Lower Caves | Found Prototype Device 15202 | -6/Lower Caves | Identified Heart of Steel 15755 | -6/Lower Caves | Discovered new exit (range 13) 15792 | -6/Lower Caves | Attacked by a faux Warlord 15795 | -6/Lower Caves | Entered Data Miner 15795 | -6/Data Miner | Discovered new exit (range 6) 15824 | -6/Data Miner | Met Data Miner 15857 | -6/Data Miner | Learned location of Section 7 (-3) 15857 | -6/Data Miner | Acquired the access code to Warlord's prototype stash 15882 | -6/Data Miner | Received God Mode back door access code from Data Miner 15917 | -6/Data Miner | Entered Proximity Caves 16045 | -5/Proximity Caves | Attracted the attention of an 0b10 checkpoint 16046 | -5/Proximity Caves | Escorted by Enhanced Grunt 16067 | -5/Proximity Caves | Spotter reported a threat 16106 | -5/Proximity Caves | Spotter reported a threat 16163 | -5/Proximity Caves | Spotter reported a threat 16208 | -5/Proximity Caves | Learned Factory terminal intel 16280 | -5/Proximity Caves | Spotter reported a threat 16361 | -5/Proximity Caves | Discovered exit to Factory (range 28) 16404 | -5/Proximity Caves | Entered Factory 16404 | -5/Factory | Evolved 2 slots: Utility x1, Weapon x1 16406 | -5/Factory | Loaded intel: 28 terminal locations 16704 | -5/Factory | Search patrols dispatched 16882 | -5/Factory | Discovered new exit (range 13) 17004 | -5/Factory | Search patrols dispatched 17063 | -5/Factory | Garrison activated, responded to threat 17252 | -5/Factory | Lost 6 parts (1p1n1u3w) 17600 | -5/Factory | Build established: Scavenger-Tank 17673 | -5/Factory | Repaired KE Penetrator 17900 | -5/Factory | Loaded intel: 8 recycling unit locations 17918 | -5/Factory | Incoming investigation squad redirected 18014 | -5/Factory | Lost 5 parts (2n2u1w) 18308 | -5/Factory | Entered Upper Caves 18447 | -5/Upper Caves | Learned Factory terminal intel 18753 | -5/Upper Caves | Spotted B-75 Beast 19037 | -5/Upper Caves | Discovered new exit (range 7) 19053 | -5/Upper Caves | Entered another Upper Caves area 19094 | -5/Upper Caves | Lost 3 parts (1u2w) 19418 | -5/Upper Caves | Build established: Tank 19498 | -5/Upper Caves | Learned Factory garrison access intel 19688 | -5/Upper Caves | Discovered new exit (range 13) 19759 | -5/Upper Caves | Entered Warlord 19968 | -5/Warlord | Learned Testing trap positions 19968 | -5/Warlord | Learned Research stockpile data 19971 | -5/Warlord | Learned 4 Armory zone layouts 19971 | -5/Warlord | Learned 4 Research zone layouts 19974 | -5/Warlord | Learned Armory security intel 19974 | -5/Warlord | Learned Factory recycling unit intel 19974 | -5/Warlord | Learned Armory terminal intel 20043 | -5/Warlord | Found Prototype Device 20436 | -5/Warlord | Opened Warlord's prototype stash 20442 | -5/Warlord | Found Prototype Reactor 20448 | -5/Warlord | Found Prototype Device 20448 | -5/Warlord | Identified Exp. Phase Shifter 20483 | -5/Warlord | Found Prototype Hackware 20483 | -5/Warlord | Identified Ghost Barrier 20759 | -5/Warlord | Build established: Hacker-Tank 20847 | -5/Warlord | Found Signal Generator 21059 | -5/Warlord | Warlord's base attacked by MAIN.C 21099 | -5/Warlord | Rebuked by Warlord 21409 | -5/Warlord | Warlord forces counterattacked 21552 | -5/Warlord | Met EX-DEC 21558 | -5/Warlord | Found Prototype Energy Cannon 21734 | -5/Warlord | Warlord base infiltrated, sounded retreat 21770 | -5/Warlord | Spotted B-75 Beast 21778 | -5/Warlord | Lost 3 allies 21788 | -5/Warlord | Destroyed B-75 Beast 21796 | -5/Warlord | Spotted Executioner 21804 | -5/Warlord | Spotted Striker 21810 | -5/Warlord | Core integrity fell below 50% 21817 | -5/Warlord | Identified Wardrone Bay 21828 | -5/Warlord | Allies destroyed Executioner 21832 | -5/Warlord | Released all parts (4) 21845 | -5/Warlord | Lost 5 parts (1p1n1u2w) 21874 | -5/Warlord | Core integrity fell below 20% 21904 | -5/Warlord | Spotted Striker 21912 | -5/Warlord | Spotted Executioner 21912 | -5/Warlord | Discovered new exit (range 14) 21912 | -5/Warlord | Destroyed by Executioner with Helical Railgun Last Messages --------------- approaching through caves, arriving soon. 21859_ ANNOUNCEMENT: Detected 2 Grunt squads, 1 Demolisher squad, 1 Melee squad, with prototype support. 21877_ Door malfunctions. 21890_ S>LDN3Q6|N